bitfinex-derivatives/quotes_ETHF0:USTF0_20260115
["timestamp","ask_amount","ask_price","bid_price","bid_amount"]
[1768448361699,0.00353942,3289.4,3287.6,3.69351922]
[1768448361903,0.00353942,3289.4,3287.8,3.54138922]
[1768448363100,0.00353942,3289.4,3288.0,3.4434724]
[1768448364098,0.89051296,3289.3,3288.0,3.4434724]
[1768448364299,0.89051296,3289.2,3288.0,3.4434724]
[1768448364502,0.00353942,3289.4,3288.0,3.4434724]
[1768448364691,0.89062826,3289.3,3288.0,3.4434724]
[1768448364894,3.36008532,3287.5,3285.5,3.4434724]
[1768448365101,3.36008532,3287.5,3285.3,1.25955865]
[1768448365102,3.51222532,3287.3,3285.3,1.25955865]
[1768448365301,0.15215,3287.1,3285.3,1.25955865]
[1768448365503,0.89062826,3287.0,3285.3,1.25955865]
[1768448365710,0.89062826,3286.9,3285.3,1.25955865]
[1768448365902,0.89062826,3286.8,3285.4,3.4434724]
[1768448366101,0.00337307,3286.9,3285.8,0.00456225]
[1768448367399,0.88768303,3286.8,3285.8,0.00456225]
[1768448367602,0.00337307,3286.9,3285.8,0.00456225]
[1768448367796,0.88768751,3286.8,3285.8,0.00456225]
[1768448368008,0.00337307,3286.9,3285.8,0.00456225]
[1768448368211,0.00337307,3286.9,3284.5,1.245]
[1768448368212,3.36008532,3286.3,3283.0,3.4434724]
[1768448368399,3.36008532,3286.1,3283.0,3.4434724]
[1768448368706,3.87877321,3286.8,3283.0,3.4434724]
[1768448368707,3.36008532,3285.5,3283.0,3.4434724]
[1768448368912,3.36008532,3285.3,3283.0,3.4434724]
[1768448369107,0.88662791,3285.2,3283.0,3.4434724]
[1768448369314,0.88662791,3285.1,3283.8,0.00456225]
[1768448369508,0.88662791,3285.0,3283.8,0.00456225]
[1768448369809,3.36008532,3285.9,3283.8,0.00456225]
[1768448370009,0.91005984,3285.8,3283.8,0.00456225]
[1768448370211,41.71005984,3285.7,3283.8,0.00456225]
[1768448370413,0.00456225,3285.1,3283.8,0.00456225]
[1768448371216,6.00456225,3285.1,3283.0,0.0008442]
[1768448371508,10.27325619,3285.0,3283.0,0.0008442]
[1768448371705,0.91317087,3284.9,3283.0,3.4443166]
[1768448371904,6.00456225,3285.1,3283.0,3.4443166]
[1768448371905,0.91317087,3284.8,3283.0,3.4443166]
[1768448372207,0.00456225,3285.1,3283.2,3.44431509]
[1768448372410,0.00456225,3285.1,3283.6,2.25e-06]
[1768448372710,0.00456225,3285.1,3283.6,3.44347465]
[1768448373812,0.00456225,3285.1,3284.0,0.00084269]
[1768448376816,0.00456225,3285.1,3284.0,3.44431509]
[1768448380017,0.00456225,3285.1,3284.0,0.00084269]
[1768448380217,0.00456225,3285.1,3283.6,2.25e-06]
[1768448380417,0.00456225,3285.1,3283.8,0.00084269]
[1768448381512,0.00456225,3285.1,3283.9,0.00084269]
[1768448382611,0.15227,3284.6,3282.3,0.15237]
[1768448382805,0.15493829,3284.6,3283.0,3.4443166]
[1768448383617,0.00266829,3284.6,3283.0,3.4443166]
[1768448383810,0.00266829,3284.6,3283.5,0.00456225]
[1768448384208,0.00266829,3284.6,3283.5,3.44803465]
[1768448384527,0.00266829,3284.6,3283.6,3.4434724]
[1768448386521,0.00266829,3284.6,3283.6,6.4884724]
[1768448386727,0.00266829,3284.6,3283.7,3.4434724]
[1768448388235,2.00456225,3285.1,3283.7,3.4434724]
[1768448389123,2.00729615,3285.1,3283.7,3.4434724]
[1768448391131,2.00729615,3285.1,3283.8,1.246]
[1768448392028,2.00729615,3285.1,3283.9,3.58462488]
[1768448392823,2.00729615,3285.1,3284.0,1.246]
[1768448393227,0.91687585,3285.0,3284.0,1.246]
[1768448393520,0.91687585,3284.9,3283.9,3.58462488]
[1768448393726,2.00729615,3285.1,3284.1,1.246]
[1768448394031,0.91687685,3285.0,3284.1,4.83062488]
[1768448394239,0.91978301,3284.9,3284.2,3.58462488]
[1768448394531,0.91978301,3284.8,3284.2,3.58462488]
[1768448394736,0.91978301,3284.7,3284.2,3.58462488]
[1768448394938,2.00729615,3285.1,3284.2,3.58462488]
[1768448395237,0.91997848,3285.0,3284.2,3.58462488]
[1768448395527,0.91997848,3284.9,3284.2,3.58462488]
[1768448395733,0.91997848,3284.8,3284.2,3.58462488]
[1768448395928,0.91997848,3284.7,3284.2,3.58462488]
[1768448396125,0.91997848,3284.6,3284.2,3.58462488]
[1768448396320,2.00729615,3285.1,3284.2,3.58462488]
[1768448396321,0.91997848,3284.5,3284.2,3.58462488]
[1768448396520,2.00729615,3285.1,3284.2,3.58462488]
[1768448396727,0.92140501,3285.0,3284.2,3.58462488]
[1768448396928,0.92140501,3284.9,3284.2,3.58462488]
[1768448397129,0.92140501,3284.8,3284.2,3.58462488]
[1768448397337,0.92140501,3284.7,3284.2,3.58462488]
[1768448397635,0.92140501,3284.6,3283.7,3.58462488]
[1768448397827,0.92140501,3284.5,3283.7,1.247]
[1768448398028,0.92140501,3284.4,3283.7,1.247]
[1768448398228,2.67274507,3284.9,3283.7,1.247]
[1768448398229,0.92140501,3284.3,3283.7,1.247]
[1768448398432,0.92140501,3284.2,3283.7,1.247]
[1768448398631,0.92140501,3284.1,3283.7,1.247]
[1768448398832,0.92140501,3284.0,3283.7,1.247]
[1768448399034,0.92140501,3283.9,3283.7,1.247]
[1768448399237,1.61044411,3284.5,3283.7,0.40697665]
[1768448400027,1.61044411,3284.6,3283.7,3.99160153]
[1768448400629,1.61044411,3284.7,3283.7,3.99160153]
[1768448400833,3.56024662,3284.5,3281.5,3.58462488]
[1768448401130,2.67274507,3281.6,3278.2,1.42626979]
[1768448401432,1.60529495,3280.9,3278.4,3.58462488]
[1768448401622,2.67274507,3280.9,3278.4,3.58462488]
[1768448401821,1.60529495,3281.3,3278.6,3.58462488]
[1768448402021,1.60529495,3281.3,3278.4,0.25531733]
[1768448402022,0.00456934,3280.0,3278.8,3.58462488]
[1768448402336,0.00309068,3280.9,3278.7,1.204]
[1768448402639,0.00309068,3280.9,3278.9,2.67274507]
[1768448402829,1.60529495,3282.4,3279.4,2.67274507]
[1768448403028,1.60529495,3282.7,3279.5,1.247]
[1768448403234,2.67274507,3282.7,3279.8,0.15249]
[1768448403426,2.68254712,3283.6,3278.4,3.29605662]
[1768448403427,2.67274507,3283.1,3280.8,0.00190105]
[1768448403733,2.67579688,3283.1,3280.8,0.00420679]
[1768448403930,2.67579688,3283.1,3280.9,3.825]
[1768448404136,0.00305181,3283.1,3281.0,3.58462488]
[1768448404638,0.00456934,3282.4,3281.0,3.58462488]
[1768448404829,0.00305181,3283.1,3281.0,9.58462488]
[1768448405032,0.00305181,3283.1,3281.0,3.58462488]
[1768448405435,0.00305181,3283.1,3281.2,3.58462488]
[1768448406037,0.00456934,3282.5,3281.2,3.58462488]
[1768448406243,0.00305181,3283.1,3281.2,3.58462488]
[1768448406739,0.00305181,3283.1,3281.3,3.58462488]
[1768448406944,0.00305181,3283.1,3281.5,3.58462488]
[1768448407132,0.00305181,3283.1,3281.6,1.248]
[1768448407333,0.00456934,3282.7,3281.7,4.83262488]
[1768448407533,0.00456934,3282.7,3281.8,4.83262488]
[1768448408246,0.00456934,3282.7,3281.2,3.58462488]
[1768448408445,0.00456934,3282.7,3281.3,4.83262488]
[1768448408645,0.00456934,3282.7,3281.4,3.58462488]
[1768448409235,0.00456934,3282.7,3281.5,1.248]
[1768448409432,0.00456934,3282.7,3281.4,3.58462488]
[1768448409649,0.00456934,3282.7,3281.5,1.248]
[1768448410846,0.00456934,3282.7,3281.4,3.58462488]
[1768448411046,0.00456934,3282.7,3281.5,1.248]
[1768448412049,0.93705255,3282.6,3281.5,1.248]
[1768448412248,0.93705255,3282.5,3281.5,1.248]
[1768448412438,0.00456934,3282.7,3281.5,1.248]
[1768448412644,0.93675348,3282.6,3281.5,1.248]
[1768448412843,0.93675348,3282.5,3281.4,4.83262488]
[1768448413042,2.67274507,3282.2,3280.8,3.58883167]
[1768448413242,0.93661267,3282.1,3280.8,3.58883167]
[1768448413443,0.93661267,3282.0,3280.8,3.58883167]
[1768448413642,2.67274507,3282.2,3280.8,3.58883167]
[1768448413844,0.93611485,3282.1,3280.8,3.58883167]
[1768448414143,0.93611485,3282.0,3280.8,3.58883167]
[1768448414337,0.15692934,3282.7,3280.8,3.58883167]
[1768448414538,0.93586515,3282.6,3280.8,3.58883167]
[1768448414737,0.93586515,3282.5,3280.8,3.58883167]
[1768448414937,0.93586515,3282.4,3280.8,3.58883167]
[1768448415139,0.93586515,3282.3,3280.8,3.58883167]
[1768448415342,0.00456934,3282.7,3280.8,3.58883167]
[1768448415547,0.93551394,3282.6,3280.8,3.58883167]
[1768448415845,0.00456934,3282.7,3280.8,3.58883167]
[1768448416145,0.00456934,3282.7,3281.0,3.58462488]
[1768448417040,0.00305181,3283.1,3281.0,3.58462488]
[1768448417843,0.00305181,3283.1,3281.5,3.58462488]
[1768448418346,0.00456934,3282.6,3281.5,3.58462488]
[1768448418741,0.00305181,3283.1,3281.5,3.58462488]
[1768448419144,0.00305181,3283.1,3281.7,3.58462488]
[1768448422043,6.0,3283.0,3280.9,3.53594604]
[1768448422249,0.93763945,3282.9,3281.1,3.35766339]
[1768448422436,0.93763945,3282.8,3281.1,3.35766339]
[1768448422640,0.93763945,3282.7,3281.1,3.35766339]
[1768448422854,0.00305181,3283.1,3281.1,3.35766339]
[1768448423045,0.00305181,3283.1,3281.2,3.35766339]
[1768448423248,0.00305181,3283.1,3281.2,3.51008339]
[1768448423553,0.00305181,3283.1,3281.4,3.51007339]
[1768448424851,2.14907553,3283.9,3281.7,3.35766339]
[1768448425042,0.93911643,3283.8,3282.6,3.35766339]
[1768448425246,0.93911643,3283.7,3282.7,1.248]
[1768448425448,0.15229,3284.1,3282.7,1.248]
[1768448425449,0.15229,3284.1,3282.8,3.35766339]
[1768448425649,0.15229,3284.1,3282.5,0.00456934]
[1768448425650,0.93974627,3284.0,3282.5,0.00456934]
[1768448425852,1.09204627,3283.9,3282.5,1.25256934]
[1768448426058,3.61249134,3283.8,3282.5,1.25256934]
[1768448426361,0.93974627,3283.7,3282.5,1.25256934]
[1768448426650,0.93974627,3283.7,3282.5,0.00456934]
[1768448428053,0.93974627,3283.6,3282.5,0.00456934]
[1768448428357,0.1523,3283.9,3281.6,3.35766339]
[1768448428358,0.15232,3283.4,3281.6,3.35766339]
[1768448428561,0.93974627,3283.3,3281.6,4.60566339]
[1768448429060,0.93974627,3283.3,3281.7,1.248]
[1768448429655,0.00456934,3282.8,3282.2,0.00456934]
[1768448429855,0.93974627,3282.7,3282.2,0.00456934]
[1768448430645,0.93974627,3282.7,3280.9,0.15244]
[1768448430646,0.15239,3282.0,3279.8,3.35766339]
[1768448430953,1.60586438,3281.8,3279.8,3.35766339]
[1768448431152,0.93974627,3281.9,3279.2,1.40051]
[1768448431153,0.93974627,3281.7,3280.0,3.35766339]
[1768448431350,0.93974627,3281.6,3280.2,3.35766339]
[1768448431547,0.93974627,3281.5,3280.2,3.36090385]
[1768448431747,0.93974627,3281.4,3280.2,0.00324046]
[1768448431948,0.93974627,3281.3,3280.2,0.00324046]
[1768448432149,0.93974627,3281.2,3280.2,0.00324046]
[1768448432348,0.93974627,3281.1,3280.2,0.00324046]
[1768448432551,0.00239993,3281.6,3280.2,0.00324046]
[1768448432552,0.93974627,3281.0,3280.2,0.00324046]
[1768448432752,0.00239993,3281.6,3280.2,0.00324046]
[1768448432753,0.00239993,3281.6,3280.3,0.00456934]
[1768448432952,0.00456934,3280.9,3280.3,0.00456934]
[1768448433150,0.00456934,3280.9,3279.2,3.35766339]
[1768448433356,0.94737263,3280.8,3279.5,0.00230574]
[1768448433555,0.94737263,3280.7,3279.5,0.00230574]
[1768448433757,0.94737263,3280.6,3279.5,0.00230574]
[1768448433963,0.94737263,3280.5,3279.5,3.35996913]
[1768448434152,0.00456934,3280.9,3279.5,3.36291432]
[1768448434356,0.94668769,3280.8,3279.6,0.00230574]
[1768448434665,0.94668769,3280.7,3279.9,0.00456934]
[1768448434968,0.00456934,3280.9,3279.9,0.00456934]
[1768448435155,0.94594048,3280.8,3279.9,0.00456934]
[1768448435354,0.94594048,3280.7,3279.9,0.00456934]
[1768448435554,0.00456934,3280.9,3279.9,3.36223273]
[1768448435748,0.94543449,3280.8,3279.9,3.36223273]
[1768448435951,0.00456934,3280.9,3279.9,3.36223273]
[1768448436161,0.94543331,3280.8,3279.9,3.36223273]
[1768448436365,0.00456934,3280.9,3279.9,3.36223273]
[1768448436559,0.94504063,3280.8,3279.9,3.36223273]
[1768448436755,1.09732243,3280.7,3278.4,3.35766339]
[1768448436951,0.94487243,3280.6,3278.5,3.35766339]
[1768448437150,0.94487243,3280.5,3278.5,3.35766339]
[1768448437360,0.00456934,3280.9,3278.9,3.35766339]
[1768448437669,0.15245,3280.7,3278.9,3.35766339]
[1768448437854,0.94443416,3280.6,3278.9,3.36034538]
[1768448438053,0.94443416,3280.5,3278.9,4.60834538]
[1768448438254,0.94443416,3280.4,3278.9,4.60834538]
[1768448438457,0.94443416,3280.3,3278.9,3.36034538]
[1768448438657,0.94443416,3280.2,3279.0,4.60796913]
[1768448438958,0.00456934,3280.9,3279.3,0.00230574]
[1768448439264,0.94363685,3280.8,3279.3,1.25130574]
[1768448439451,0.94363685,3280.7,3279.3,1.249]
[1768448439651,0.94363685,3280.6,3279.4,3.35766339]
[1768448439862,0.94363685,3280.5,3279.4,3.35766339]
[1768448440063,0.00456934,3280.9,3279.4,4.60666339]
[1768448440251,0.94312641,3280.8,3279.4,4.60666339]
[1768448440451,0.94312641,3280.7,3279.8,0.00456934]
[1768448440665,0.00456934,3280.9,3279.8,3.36223273]
[1768448441353,0.00456934,3280.9,3280.5,3.35766339]
[1768448441555,0.00239993,3281.6,3280.5,4.60666339]
[1768448441754,0.94288729,3281.5,3280.5,4.60666339]
[1768448441954,0.94288729,3281.4,3280.5,4.60666339]
[1768448442257,0.00239993,3281.6,3280.5,4.60666339]
[1768448442561,0.00456934,3281.4,3280.6,0.00230574]
[1768448442967,0.00456934,3281.4,3280.8,0.00230574]
[1768448443470,0.00456934,3281.4,3280.5,4.60666339]
[1768448443671,0.00456934,3281.4,3279.8,3.36223273]
[1768448443672,1.09506513,3281.3,3279.8,3.36223273]
[1768448443970,0.94264513,3281.2,3279.8,0.00456934]
[1768448444159,0.94264513,3281.1,3279.8,3.36223273]
[1768448444355,0.94264513,3281.0,3279.8,3.36223273]
[1768448444669,0.00456934,3281.4,3279.8,3.36223273]
[1768448444860,0.94255306,3281.3,3279.8,3.36223273]
[1768448445055,0.00456934,3281.4,3279.8,3.36223273]
[1768448447962,0.00456934,3281.4,3279.9,3.35766339]
[1768448448170,0.00456934,3281.4,3279.9,3.51014339]
[1768448448470,0.00239993,3281.6,3280.1,3.35766339]
[1768448448771,1.75822438,3282.6,3280.3,3.35766339]
[1768448448970,0.9431523,3282.5,3280.5,3.35766339]
[1768448449166,0.9431523,3282.4,3280.5,3.35766339]
[1768448449366,0.9431523,3282.3,3280.5,3.35766339]
[1768448449564,0.00456934,3281.8,3280.5,3.35766339]
[1768448451174,0.00456934,3281.8,3280.7,3.61444393]
[1768448453370,0.00456934,3281.8,3280.8,4.86344393]
[1768448453573,0.00456934,3281.8,3280.9,3.61444393]
[1768448453773,0.00337938,3282.3,3280.9,3.61444393]
[1768448453964,0.94440299,3282.2,3280.9,3.61444393]
[1768448454166,0.94440299,3282.1,3281.0,1.249]
[1768448454368,0.94440299,3282.0,3281.0,1.249]
[1768448454566,0.00337938,3282.3,3280.9,3.61444393]
[1768448454870,4.64374931,3282.3,3280.6,1.245]
[1768448455172,1.60586438,3282.2,3280.6,1.245]
[1768448455368,0.15239,3282.0,3280.7,0.968]
[1768448455573,0.15239,3282.0,3280.8,0.968]
[1768448455574,0.94522282,3281.9,3280.8,0.968]
[1768448455873,0.00456934,3281.7,3280.8,0.968]
[1768448456072,0.94522282,3281.6,3280.8,0.968]
[1768448456266,0.94522282,3281.5,3280.8,0.968]
[1768448456565,0.00456934,3281.7,3280.8,0.968]
[1768448456765,0.94578243,3281.6,3280.8,0.968]
[1768448456966,0.94578243,3281.5,3280.8,0.968]
[1768448457170,0.00456934,3281.7,3280.1,3.61444393]
[1768448457474,0.94578264,3281.6,3280.2,1.249]
[1768448457774,0.94578264,3281.5,3280.3,1.249]
[1768448457974,0.94578264,3281.4,3280.3,4.86344393]
[1768448458174,0.00456934,3281.7,3280.3,4.86344393]
[1768448458378,0.94636664,3281.6,3280.3,4.86344393]
[1768448458574,0.00456934,3281.7,3280.3,4.86344393]
[1768448458776,0.94694722,3281.6,3280.3,3.61444393]
[1768448458972,0.94694722,3281.5,3280.3,3.61444393]
[1768448459173,0.00456934,3281.7,3280.4,1.249]
[1768448459375,0.9469532,3281.6,3280.4,1.249]
[1768448459574,0.9469532,3281.5,3280.4,1.249]
[1768448459879,0.00456934,3281.7,3280.4,1.249]
[1768448460081,0.94744245,3281.6,3280.4,1.249]
[1768448460282,0.94744245,3281.5,3280.4,1.249]
[1768448460576,0.94744245,3281.4,3279.8,0.00456934]
[1768448460876,0.00456934,3281.7,3279.8,0.00456934]
[1768448460877,0.15243,3281.1,3279.8,0.00456934]
[1768448461075,1.09987245,3281.0,3279.8,0.00456934]
[1768448461278,0.94744245,3280.9,3279.8,0.00456934]
[1768448462280,0.94744245,3280.9,3279.9,1.249]
[1768448463470,0.94744245,3280.8,3279.9,1.249]
[1768448463672,42.40586438,3281.6,3279.9,1.249]
[1768448463870,0.94773973,3281.5,3280.0,3.61444393]
[1768448464178,0.94773973,3281.4,3280.0,3.61444393]
[1768448464367,0.94773973,3281.3,3280.0,3.61444393]
[1768448464568,0.00456934,3281.7,3280.0,3.61444393]
[1768448464773,0.94786785,3281.6,3280.0,3.61444393]
[1768448464982,0.00456934,3281.7,3280.0,9.61444393]
[1768448465177,0.00456934,3281.7,3280.1,3.76691393]
[1768448465386,0.00337938,3282.3,3280.5,3.61444393]
[1768448465571,0.94802801,3282.2,3280.5,3.61444393]
[1768448465774,0.00337938,3282.3,3280.5,3.61444393]
[1768448466084,0.00337938,3282.3,3280.6,3.61444393]
[1768448466679,0.00337938,3282.3,3280.6,3.76689393]
[1768448466980,0.00456934,3281.8,3280.6,3.76689393]
[1768448467285,0.00337938,3282.3,3280.6,3.76689393]
[1768448471279,1.60586438,3283.2,3281.2,3.61444393]
[1768448471481,2.14940494,3284.1,3282.0,3.61444393]
[1768448471671,2.68254712,3285.0,3282.4,3.61444393]
[1768448471870,44.31239872,3285.1,3282.4,3.61444393]
[1768448472074,0.15225,3285.0,3282.4,3.61444393]
[1768448472378,0.15620059,3285.0,3282.4,3.61759735]
[1768448472981,0.15620059,3285.0,3282.5,1.249]
[1768448473189,3.51239872,3284.7,3282.6,3.61444393]
[1768448473484,3.51239872,3284.7,3282.4,0.00315342]
[1768448473682,3.51239872,3284.3,3282.4,0.00315342]
[1768448474290,3.51239872,3284.3,3282.5,1.249]
[1768448474479,3.51239872,3284.8,3282.5,4.86344393]
[1768448474675,0.00395059,3285.0,3282.6,3.61444393]
[1768448474887,0.00395059,3285.0,3282.8,3.61444393]
[1768448475186,0.00395059,3285.0,3283.6,0.00456934]
[1768448476488,0.00395059,3285.0,3283.7,1.249]
[1768448477881,40.8,3285.9,3283.7,1.249]
[1768448477882,40.8,3285.9,3283.8,3.61444393]
[1768448478082,0.15219,3286.2,3283.8,3.61444393]
[1768448478301,3.66458872,3286.2,3283.8,3.61444393]
[1768448478586,44.31239872,3286.1,3283.9,4.297]
[1768448478892,0.00342177,3286.1,3284.0,7.91044393]
[1768448479587,0.00342177,3286.1,3284.1,3.61444393]
[1768448479886,0.15222,3285.7,3283.6,0.00456934]
[1768448480295,0.15222,3285.7,3283.7,4.295]
[1768448480794,0.15222,3285.7,3283.7,7.76687871]
[1768448480992,0.15222,3285.7,3283.8,3.47187871]
[1768448481378,0.15222,3285.7,3283.7,4.295]
[1768448481379,3.55086179,3285.7,3283.6,0.00456934]
[1768448481581,3.55086179,3285.7,3282.4,0.00315342]
[1768448481582,0.15232,3283.6,3282.4,0.00315342]
[1768448481782,0.15232,3283.5,3281.6,3.47187871]
[1768448482485,0.15232,3283.5,3281.7,4.295]
[1768448482689,0.00456934,3282.9,3282.2,0.00456934]
[1768448483291,0.00332472,3283.6,3282.2,3.44434725]
[1768448483595,0.00332472,3283.6,3282.3,1.248]
[1768448484694,0.00332472,3283.6,3282.2,3.44434725]
[1768448484893,0.00332472,3283.6,3282.3,1.248]
[1768448485696,0.00332472,3283.6,3282.3,4.68777791]
[1768448486997,0.00332472,3283.6,3282.4,1.248]
[1768448488297,0.15233,3283.3,3282.2,0.00456934]
[1768448492104,0.15233,3283.3,3282.3,1.248]
[1768448495202,0.00332472,3283.6,3282.3,3.43977791]
[1768448495407,0.92118082,3283.5,3282.4,1.248]
[1768448495705,0.00332472,3283.6,3282.4,1.248]
[1768448495906,0.92130016,3283.5,3282.4,1.248]
[1768448496107,0.00332472,3283.6,3282.4,1.248]
[1768448496307,0.92130127,3283.5,3282.4,1.248]
[1768448496508,0.00332472,3283.6,3282.4,1.248]
[1768448496802,0.92153614,3283.5,3282.4,1.248]
[1768448497006,0.00332472,3283.6,3282.3,3.43977791]
[1768448497209,0.92182607,3283.5,3282.2,1.25256934]
[1768448497409,0.92182607,3283.4,3282.2,1.25256934]
[1768448497610,0.00332472,3283.6,3282.2,1.25256934]
[1768448497810,0.92204805,3283.5,3282.2,1.25256934]
[1768448498013,0.00332472,3283.6,3282.2,1.25256934]
[1768448498211,0.92215192,3283.5,3282.2,1.25256934]
[1768448498409,0.92215192,3283.4,3282.2,1.25256934]
[1768448498613,0.00332472,3283.6,3282.2,4.69234725]
[1768448498812,0.92238388,3283.5,3282.2,4.69234725]
[1768448499008,0.92238388,3283.4,3282.2,4.69234725]
[1768448499315,0.00332472,3283.6,3282.2,4.69234725]
[1768448499513,0.92260991,3283.5,3282.2,4.69234725]
[1768448499718,0.92260991,3283.4,3282.3,3.43977791]
[1768448499919,0.00332472,3283.6,3282.3,3.43977791]
[1768448500219,0.92261046,3283.5,3282.3,3.43977791]
[1768448500413,0.92261046,3283.4,3282.3,3.43977791]
[1768448500614,0.00332472,3283.6,3282.3,3.43977791]
[1768448500815,0.92285051,3283.5,3282.3,3.43977791]
[1768448501022,0.92285051,3283.4,3282.3,3.43977791]
[1768448501216,0.00332472,3283.6,3282.3,3.43977791]
[1768448501417,0.9229572,3283.5,3282.3,3.43977791]
[1768448501616,0.00332472,3283.6,3282.3,3.43977791]
[1768448504425,0.00332472,3283.6,3282.5,3.43977791]
[1768448504818,0.15228,3284.3,3282.5,3.43977791]
[1768448505019,0.92383545,3284.2,3282.5,3.43977791]
[1768448505316,0.92383545,3284.1,3282.7,3.43977791]
[1768448505521,0.92383545,3284.0,3282.7,3.43977791]
[1768448505827,0.92383545,3284.0,3282.7,0.68977791]
[1768448505828,0.00355139,3284.0,3282.7,0.68977791]
[1768448506823,0.00355139,3284.0,3282.8,1.248]
[1768448507728,0.00355139,3284.0,3282.8,4.68777791]
[1768448508226,0.00355139,3284.0,3282.9,3.43977791]
[1768448509126,0.9247479,3283.9,3283.0,1.248]
[1768448509322,0.92550768,3283.8,3282.3,3.59214791]
[1768448509623,0.92546772,3283.7,3282.4,4.295]
[1768448509825,0.00355139,3284.0,3282.4,4.295]
[1768448510026,0.92546143,3283.9,3282.4,4.295]
[1768448510229,0.92546143,3283.8,3282.4,4.295]
[1768448510525,0.92546143,3283.7,3282.5,3.42775972]
[1768448510731,0.92546143,3283.6,3282.5,3.42775972]
[1768448510919,0.00355139,3284.0,3282.5,3.42775972]
[1768448511120,0.92636848,3283.9,3282.5,3.42775972]
[1768448511317,0.92636848,3283.8,3282.6,1.248]
[1768448511524,0.92636848,3283.7,3282.6,1.248]
[1768448511822,0.92636848,3283.6,3282.6,1.248]
[1768448512022,0.92636848,3283.5,3282.6,1.248]
[1768448512223,0.00355139,3284.0,3282.6,1.248]
[1768448512423,0.92747466,3283.9,3282.6,1.248]
[1768448512629,0.92747466,3283.8,3282.6,1.248]
[1768448512824,0.92747466,3283.7,3282.6,1.248]
[1768448513025,0.92747466,3283.6,3282.6,1.248]
[1768448513225,0.92747466,3283.5,3282.6,1.248]
[1768448513431,1.59807635,3284.0,3282.3,0.15237]
[1768448513627,0.92744659,3283.9,3282.4,1.249]
[1768448516033,0.92744659,3283.9,3282.5,3.42775972]
[1768448516431,0.92744659,3283.9,3282.6,1.212]
[1768448517741,4.30919203,3283.9,3282.2,0.00456934]
[1768448517937,1.59452496,3283.5,3282.2,0.00456934]
[1768448518539,1.59452496,3283.4,3282.2,0.00456934]
[1768448518926,2.52197155,3283.5,3282.2,0.00456934]
[1768448519131,0.92744659,3283.4,3282.2,0.00456934]
[1768448519436,0.92744659,3283.3,3282.2,3.43232906]
[1768448519736,1.59452496,3283.9,3282.2,3.43232906]
[1768448520130,0.00355139,3284.0,3282.2,3.43232906]
[1768448520640,0.00355139,3284.0,3282.3,7.72275972]
[1768448521540,0.00355139,3284.0,3282.4,3.42775972]
[1768448524228,0.00355139,3284.0,3282.5,4.296]
[1768448524433,0.00355139,3284.0,3282.5,7.72375972]
[1768448524843,0.00355139,3284.0,3282.6,3.42775972]
[1768448526049,1.59452496,3284.7,3282.6,3.42775972]
[1768448526343,1.59452496,3284.8,3282.6,3.42775972]
[1768448526849,4.9762704,3284.8,3282.6,3.42775972]
[1768448527052,4.97883899,3284.8,3282.6,3.42775972]
[1768448527546,1.59452496,3284.7,3282.6,3.42775972]
[1768448527952,4.97883899,3284.8,3282.6,3.42775972]
[1768448530345,1.59452496,3284.7,3282.6,3.42775972]
[1768448530648,4.97883899,3284.8,3282.6,3.42775972]
[1768448530849,1.59452496,3284.7,3282.6,3.42775972]
[1768448531547,2.51829971,3284.7,3282.6,3.42775972]
[1768448532142,0.92377475,3284.6,3282.7,4.296]
[1768448532344,0.92377475,3284.5,3282.7,4.296]
[1768448532542,0.92377475,3284.4,3282.7,4.296]
[1768448532743,0.92377475,3284.3,3282.7,4.296]
[1768448532943,3.38174544,3284.6,3282.7,4.296]
[1768448533151,0.92377129,3284.5,3282.7,4.296]
[1768448533338,3.38174544,3284.6,3282.7,4.296]
[1768448533339,0.92377129,3284.4,3282.7,4.296]
[1768448533544,0.92377129,3284.3,3282.7,4.296]
[1768448533740,3.38174544,3284.6,3282.7,4.296]
[1768448533947,0.92374316,3284.5,3282.7,4.296]
[1768448534162,0.92374316,3284.4,3282.7,4.296]
[1768448534455,0.92374316,3284.3,3282.6,3.42775972]
[1768448534653,4.30533786,3284.2,3282.2,0.00456934]
[1768448534855,4.30533786,3284.1,3282.3,4.297]
[1768448535151,0.92359242,3284.0,3282.3,4.297]
[1768448535351,0.92359242,3283.9,3282.3,4.297]
[1768448535546,3.38174544,3284.1,3282.3,4.297]
[1768448535740,0.92340058,3284.0,3282.3,4.297]
[1768448535945,0.92340058,3283.9,3282.3,4.297]
[1768448536154,3.38174544,3284.1,3282.3,4.297]
[1768448536353,0.92324421,3284.0,3282.4,1.25]
[1768448536553,0.92324421,3283.9,3282.4,1.25]
[1768448536849,0.92324421,3283.9,3282.2,3.05156934]
[1768448536850,3.38174544,3284.1,3282.2,0.00456934]
[1768448537048,3.38174544,3283.9,3282.2,0.00456934]
[1768448537354,3.38174544,3283.7,3282.3,1.25]
[1768448537551,0.92315706,3283.6,3282.3,1.25]
[1768448537849,0.92315706,3283.5,3282.3,1.25]
[1768448538056,3.38174544,3283.7,3282.3,1.25]
[1768448538244,3.38174544,3283.5,3282.2,0.00456934]
[1768448538449,3.38174544,3283.3,3281.7,0.00290876]
[1768448538750,3.38174544,3283.1,3281.7,0.00290876]
[1768448539055,0.92279991,3283.0,3281.7,0.00290876]
[1768448539251,3.38174544,3283.1,3281.7,0.00290876]
[1768448539453,0.92229823,3283.0,3282.1,0.00456934]
[1768448539650,3.38174544,3283.1,3282.1,0.00456934]
[1768448539956,0.92224198,3283.0,3282.1,0.00456934]
[1768448540150,3.38174544,3283.1,3282.1,0.00456934]
[1768448541552,4.26548036,3283.0,3281.7,0.00290876]
[1768448541861,3.3439974,3283.0,3281.7,0.00290876]
[1768448542553,3.3439974,3283.0,3282.0,0.00456934]
[1768448545154,3.49312702,3282.9,3279.6,3.58320864]
[1768448545353,3.49312702,3282.0,3279.4,0.15251]
[1768448545556,2.67276396,3282.1,3279.4,3.73571864]
[1768448545557,3.49312702,3281.8,3279.4,3.73571864]
[1768448545751,3.49312702,3281.6,3279.4,3.73571864]
[1768448545951,3.49312702,3281.4,3279.4,3.73571864]
[1768448546259,0.00456934,3280.7,3280.1,0.00456934]
[1768448552563,3.49706448,3281.4,3280.1,0.00456934]
[1768448553867,0.00456934,3281.1,3280.1,0.00456934]
[1768448554061,3.49769636,3281.1,3280.1,0.00456934]
[1768448554464,3.49769636,3281.1,3279.4,0.1561919]
[1768448555452,3.49769636,3281.1,3279.9,0.00456934]
[1768448555652,0.00456934,3281.1,3279.9,0.00456934]
[1768448559175,3.49769636,3281.1,3279.9,0.00456934]
[1768448559362,3.49769636,3281.1,3278.0,0.15257]
[1768448559363,3.49312702,3280.4,3278.0,0.15257]
[1768448559666,3.49312702,3280.4,3278.4,2.67276396]
[1768448559858,3.49312702,3280.4,3278.3,0.15256]